Cogmind - Beta 14 @@@ ROGUE MODE // 2024.12.28 @ 17:48:10 Player: Mathewnd Result: Destroyed by C-57 Dissector with Dual-blade Saw Performance ------------- Evolutions (9) 4500 Regions Visited (19) 3800 Robots Destroyed (107) 535 Value Destroyed (2473) 2473 Prototype IDs (37) 740 Alien Tech Used (0) 0 Bonus (-595) -595 TOTAL SCORE: 11453 Bonus ------- High Alert Combat Kills 16 Follower Combat Kills 1370 Network Hubs Disabled 200 Aligned with FarCom 300 Built Enhanced Grunts 300 A7 Reached Mainframe 300 Friendly Fire -3081 Cogmind --------- Core Integrity 0/1600 Matter 300/300 Energy 98/100 System Corruption 7% Temperature Cool (0) Movement Core (50) Location -1/Command Parts ------- > --- POWER (2) -------- (None) > --- PROPULSION (7) --- (None) > --- UTILITY (14) ----- System Shield > --- WEAPON (2) ------- (None) > --- INVENTORY (5) ---- Micro Antimatter Reactor Improved Flight Unit Hellfire Missile Launcher Hellfire Missile Launcher Power Sword Peak State ------------ > --- POWER ------------ Light Antimatter Reactor Light Quantum Reactor > --- PROPULSION ------- Cooled VTOL Module Biomechanical Wings Biomechanical Wings Diametric Drive Diametric Drive Impulse Thruster Array > --- UTILITY ---------- Medium Storage Unit Advanced Visual Processing Unit Advanced Signal Interpreter Reaction Control System Cloaking Device Hacking Suite Improved Hacking Suite Improved Hacking Suite Improved Hacking Suite System Shield Improved System Shield Improved System Shield Improved System Shield Advanced System Shield > --- WEAPON ----------- Power Sword Power Sword > --- INVENTORY -------- Micro Antimatter Reactor Improved Flight Unit Field Propulsion Array ECM Suite Improved System Restoration Module Hellfire Missile Launcher Hellfire Missile Launcher Power Sword Power Sword [Rating: 139] Favorites ----------- Power Improved Deuterium Engine Engine Improved Deuterium Engine Power Core Light Fission Core Reactor Light Antimatter Reactor Propulsion Biomechanical Wings Treads Light Treads Leg Aluminum Leg Flight Unit Biomechanical Wings Utility Hacking Suite Device Trap Reconfigurator Storage Medium Storage Unit Processor Advanced Visual Processing Unit Hackware Hacking Suite Weapon Power Sword Energy Gun Beam Rifle Ballistic Gun Assault Rifle Launcher Rocket Launcher Impact Weapon Mace Slashing Weapon Power Sword Build | -11 -10 -10 -9 -9 -9 -8 -8 -7 -6 -5 -5 -5 -5 -5 -4 -3 -2 -1 -1 ------- Run | Yrd Mat Min Mat Min Exi Min Mat Fac Fac Fac Ext Cet Arc Hub Fac Res Res Acc Com Slots Evolved 18 | . . . 2 . . . 2 2 2 2 . . . . 2 2 2 2 . Power 1 | . . . . . . . . . 1 . . . . . . . . . . Propulsion 5 | . . . 2 . . . . 1 . . . . . . . . 1 1 . Utility 12 | . . . . . . . 2 1 1 2 . . . . 2 2 1 1 . Weapon . | . . . . . . . . . . . . . . . . . . . . Parts Attached 124 | 6 4 . 2 . . 2 19 20 12 5 11 3 2 6 6 8 2 14 2 Power 16 | 1 1 . . . . . 3 2 2 . 2 . 1 . . . 1 3 . Engine 9 | 1 1 . . . . . 3 2 1 . . . 1 . . . . . . Core 3 | . . . . . . . . . 1 . 2 . . . . . . . . Reactor 4 | . . . . . . . . . . . . . . . . . 1 3 . Propulsion 42 | 2 . . 2 . . . 10 11 4 . 1 . . 3 . 3 1 3 2 Treads 7 | 2 . . 2 . . . 3 . . . . . . . . . . . . Leg 3 | . . . . . . . 3 . . . . . . . . . . . . Wheel . | . . . . . . . . . . . . . . . . . . . . Hover . | . . . . . . . . . . . . . . . . . . . . Flight 32 | . . . . . . . 4 11 4 . 1 . . 3 . 3 1 3 2 Utility 36 | 1 2 . . . . . 2 5 2 5 2 . . 2 4 3 . 8 . Device 13 | . . . . . . . . 3 1 . 1 . . 1 . 1 . 6 . Storage 3 | 1 1 . . . . . 1 . . . . . . . . . . . . Processor 5 | . 1 . . . . . 1 2 . . . . . . . . . 1 . Hackware 15 | . . . . . . . . . 1 5 1 . . 1 4 2 . 1 . Protection . | . . . . . . . . . . . . . . . . . . . . Artifact . | . . . . . . . . . . . . . . . . . . . . Weapon 30 | 2 1 . . . . 2 4 2 4 . 6 3 1 1 2 2 . . . Energy Gun 2 | . . . . . . . 2 . . . . . . . . . . . . Energy Cannon . | . . . . . . . . . . . . . . . . . . . . Ballistic Gun 6 | 2 1 . . . . 1 1 . . . . . . 1 . . . . . Ballistic Cannon . | . . . . . . . . . . . . . . . . . . . . Launcher 6 | . . . . . . 1 1 . . . 2 2 . . . . . . . Special Weapon . | . . . . . . . . . . . . . . . . . . . . Impact Weapon 2 | . . . . . . . . . 2 . . . . . . . . . . Slashing Weapon 14 | . . . . . . . . 2 2 . 4 1 1 . 2 2 . . . Piercing Weapon . | . . . . . . . . . . . . . . . . . . . . Special Melee Weapon . | . . . . . . . . . . . . . . . . . . . . Unidentified Prototypes 4 | . . . . . . . 1 . 1 . . 1 . 1 . . . . . Parts Lost 51 | . 1 . . . . . 15 . . 3 6 3 . 3 . . . . 20 Power 7 | . . . . . . . 3 . . . 2 1 . . . . . . 1 Propulsion 18 | . . . . . . . 8 . . . 1 . . 2 . . . . 7 Utility 17 | . . . . . . . . . . 3 2 . . 1 . . . . 11 Weapon 9 | . 1 . . . . . 4 . . . 1 2 . . . . . . 1 Highest Loss Streak 20 | . 1 . . . . . 6 . . 3 2 3 . 2 . . . . 20 To Critical Strikes 1 | . . . . . . . . . . . . 1 . . . . . . . Average Slot Usage (%) 88 | . 86 100 83 100 100 100 62 83 94 99 94 81 91 92 91 93 91 95 92 Engine 5 | . 14 14 11 11 11 11 7 6 6 5 . . 3 5 5 4 1 . . Core 1 | . . . . . . . . . 1 5 5 . . . . . . . . Reactor 1 | . . . . . . . . . . . . . . . . . 2 7 7 Treads 8 | . 28 28 28 44 44 44 13 . . . . . . . . . . . . Flight 19 | . . . . . . . . 36 33 29 29 29 29 28 26 23 26 23 22 Device 6 | . . . . . . . . 14 13 11 10 11 11 8 . 3 4 7 7 Storage 7 | . 14 14 11 11 11 11 9 7 6 5 5 5 5 5 5 4 4 4 3 Processor 10 | . 1 14 11 11 11 11 10 15 13 11 11 11 11 11 10 9 8 8 8 Hackware 13 | . . . . . . . . . 6 16 16 17 17 18 35 37 34 36 35 Ballistic Gun 6 | . 27 28 22 22 22 21 8 . . . . . . . 1 . . . . Slashing Weapon 5 | . . . . . . . . 1 8 11 10 2 10 10 7 8 8 8 7 Peak Build Rating 139 | 6 10 11 12 12 13 14 16 38 69 77 80 78 76 76 78 102 112 139 136 Average Rating 57 | 4 6 10 10 12 12 13 11 32 53 76 76 66 74 72 77 95 106 133 131 On Entrance 48 | . 6 10 10 12 12 13 13 12 37 69 77 76 68 76 61 78 102 108 136 Naked Turns . | . . . . . . . . . . . . . . . . . . . . Heaviest Build 53 | 14 52 52 52 52 52 51 53 25 30 30 32 36 29 29 26 27 29 46 46 Greatest Support 80 | 40 40 40 80 80 80 80 80 24 30 30 30 30 30 30 28 31 36 47 50 Greatest Overweight (x) 17 | . 1 1 1 . . . 17 2 1 . 1 1 . 1 . . . . 2 Average Overweight (x) . | . . 1 . . . . 1 . . . . . . . . . . . . Largest Inventory Capacity 20 | 8 20 20 20 20 20 20 20 10 10 10 10 10 10 10 10 10 10 10 10 Average Capacity 12 | 7 14 20 20 20 20 20 17 10 10 10 10 10 10 10 10 10 10 10 9 Most Carried 19 | 5 16 16 16 15 16 17 19 10 10 10 10 8 10 10 8 10 10 10 10 Average Carried 9 | 3 8 15 15 15 15 16 14 8 8 8 7 7 8 9 3 8 9 9 9 Final Capacity 20 | 8 20 20 20 20 20 20 10 10 10 10 10 10 10 10 10 10 10 10 5 Final Carried 17 | 4 15 15 15 15 16 17 9 10 10 7 8 7 10 9 3 10 10 10 5 Class Distribution -------------------- 26% | Mutant 22% | Wizard-Sprinter 15% | Sprinter 13% | Hacker-Sprinter 8% | Scavenger-Mutant 6% | Commander-Sprinter 3% | Commander-Mutant Dominant Class ---------------- Mutant | -10/Materials Mutant | -10/Mines Mutant | -9/Materials Mutant | -9/Mines Mutant | -9/Exiles Scavenger-Mutant | -8/Mines Scavenger-Mutant | -8/Materials Sprinter | -7/Factory Sprinter | -6/Factory Hacker-Sprinter | -5/Factory Hacker-Sprinter | -5/Extension Commander-Mutant | -5/Cetus Commander-Sprinter | -5/Archives Commander-Sprinter | -5/Hub_04(d) Wizard-Sprinter | -4/Factory Wizard-Sprinter | -3/Research Wizard-Sprinter | -2/Research Wizard-Sprinter | -1/Access Wizard-Sprinter | -1/Command Resources | -11 -10 -10 -9 -9 -9 -8 -8 -7 -6 -5 -5 -5 -5 -5 -4 -3 -2 -1 -1 ----------- Run | Yrd Mat Min Mat Min Exi Min Mat Fac Fac Fac Ext Cet Arc Hub Fac Res Res Acc Com Matter Collected 2175 | 235 200 . 89 66 . . 373 118 192 60 255 63 152 40 . 154 20 140 18 Remotely . | . . . . . . . . . . . . . . . . . . . . Salvage Created 4205 | . 371 . 89 . . 12 710 118 285 184 864 62 287 835 . 216 31 67 74 Parts 255 | . 31 . 8 . . 6 48 10 23 14 34 1 26 44 . . 3 4 3 Haulers Intercepted 4 | . . . 1 . . . 2 . . . . . . 1 . . . . . Recyclers Shooed 3 | . 1 . . . . . 1 . . . 1 . . . . . . . . Parts Field Recycled . | . . . . . . . . . . . . . . . . . . . . Retrieved Matter . | . . . . . . . . . . . . . . . . . . . . Parts Self-Destructed . | . . . . . . . . . . . . . . . . . . . . Prevented . | . . . . . . . . . . . . . . . . . . . . Kills | -11 -10 -10 -9 -9 -9 -8 -8 -7 -6 -5 -5 -5 -5 -5 -4 -3 -2 -1 -1 ------- Run | Yrd Mat Min Mat Min Exi Min Mat Fac Fac Fac Ext Cet Arc Hub Fac Res Res Acc Com Combat Hostiles Destroyed 44 | . 10 . 1 . . 3 15 . 3 2 6 . . 2 . . . . 2 Melee 15 | . . . . . . . . . 3 2 6 . . 2 . . . . 2 Guns 21 | . 10 . 1 . . . 10 . . . . . . . . . . . . AOE 8 | . . . . . . 3 5 . . . . . . . . . . . . Classes Destroyed 13 | . 5 . 2 . . . 3 . 2 . . . . 1 . . . . . Worker 9 | . . . . . . . 3 . 2 . . . . 4 . . . . . Builder 7 | . . . . . . . 1 1 . . 2 . . 3 . . . . . Hauler 4 | . . . 1 . . . 2 . . . . . . 1 . . . . . Recycler 8 | . 1 . . . . . 2 1 . . 4 . . . . . . . . Operator 11 | . 1 . . . . . . . 1 . 1 . 8 . . . . . . Watcher 14 | . 2 . . . . . 1 1 2 2 1 . . 2 . . 1 2 . Swarmer 18 | . 6 . . . . 3 7 . . . . . . . . . . . 2 Grunt 17 | . 4 . . . . . 4 . . 1 4 . . 1 . 3 . . . Sentry 9 | . . . 1 . . . 3 . 1 1 2 . . 1 . . . . . Demolisher 1 | . . . . . . . . . 1 . . . . . . . . . . Hunter 1 | . . . . . . . 1 . . . . . . . . . . . . Programmer 1 | . . . . . . . . . 1 . . . . . . . . . . Enhanced Grunt 2 | . . . . . . . . . . . . . . 2 . . . . . Butcher 1 | . . . . . . . . . . . . . . 1 . . . . . Guerrilla 4 | . . . . . . . . . . . . 1 . 3 . . . . . Best Kill Streak 8 | . 4 . 1 . . 3 7 2 3 1 5 . 7 8 . . 1 1 1 Combat Bots Only 3 | . 3 . 1 . . 3 3 . 1 1 2 . . 1 . . . . 1 Max Kills in Single Turn 12 | . 2 . 1 . . 2 6 1 1 1 2 1 1 12 . 1 1 1 1 Gunslinging . | . . . . . . . . . . . . . . . . . . . . Exploded 3 | . . . . . . 2 3 . . . . . . . . . . . . Melee 1 | . . . . . . . . . 1 1 1 . . 1 . . . . 1 Uniques/NPCs Destroyed . | . . . . . . . . . . . . . . . . . . . . Combat | -11 -10 -10 -9 -9 -9 -8 -8 -7 -6 -5 -5 -5 -5 -5 -4 -3 -2 -1 -1 -------- Run | Yrd Mat Min Mat Min Exi Min Mat Fac Fac Fac Ext Cet Arc Hub Fac Res Res Acc Com Hostile Shots Fired 646 | . 86 . 2 . . 6 192 . 49 4 24 21 . 23 . . . 8 231 Missed 264 | . 32 . . . . 1 47 . 27 1 9 8 . 6 . . . 8 125 Damage Taken 6584 | . 572 . 28 . . 48 1901 . 137 73 434 268 . 486 . . . . 2637 Core 2455 | . 79 . . . . . 540 . 31 . 27 54 . 115 . . . . 1609 Absorbed by Shields 99 | . . . . . . . . . . . . 99 . . . . . . . Regen/Repaired (Parts) 16 | . . . . . . . . . . . . . . . . . . 16 . Core Remaining (%) 84 | 100 . 68 . . . 100 1 100 96 . . . . 80 100 100 100 . . Volleys Fired 118 | . 40 . 5 . . 3 55 . . . 10 4 . 1 . . . . . Largest 2 | . 2 . 2 . . 1 2 . . . 1 2 . 1 . . . . . Hottest 121 | . 43 . 43 . . 33 121 . . . 43 93 . 33 . . . . . Shots Fired 195 | . 80 . 10 . . 3 86 . . . 10 5 . 1 . . . . . Gun 174 | . 80 . 10 . . . 83 . . . . . . 1 . . . . . Cannon . | . . . . . . . . . . . . . . . . . . . . Launcher 21 | . . . . . . 3 3 . . . 10 5 . . . . . . . Special . | . . . . . . . . . . . . . . . . . . . . Kinetic 153 | . 80 . 10 . . . 62 . . . . . . 1 . . . . . Thermal 21 | . . . . . . . 21 . . . . . . . . . . . . Explosive 21 | . . . . . . 3 3 . . . 10 5 . . . . . . . Electromagnetic . | . . . . . . . . . . . . . . . . . . . . Robot Hit Streak 11 | . 8 . 3 . . 3 11 . . . 4 . . . . . . . . Robot Miss Streak 4 | . 3 . 2 . . 1 4 . . . 1 . . . . . . . . Penetration Max . | . . . . . . . . . . . . . . . . . . . . Secondary Targets 3 | . 1 . . . . . 2 . . . . . . . . . . . . Max Gunslinging Chain 1 | . 1 . . . . . 1 . . . . . . . . . . . . Shots Hit Robots 220 | . 52 . 7 . . 2 60 3 21 6 24 3 12 11 . 6 1 7 5 Core Hits 185 | . 22 . 4 . . 2 50 2 7 5 19 36 5 25 . 3 1 2 2 Critical Kills . | . . . . . . . . . . . . . . . . . . . . Critical Parts Destroyed . | . . . . . . . . . . . . . . . . . . . . Critical Strikes 11 | . . . . . . . . . 3 . 4 1 . 1 . 1 . . 1 Sever 11 | . . . . . . . . . 3 . 4 1 . 1 . 1 . . 1 Melee Attacks 159 | . . . . . . . . 5 36 7 41 3 16 12 . 11 3 13 12 Impact 4 | . . . . . . . . . 4 . . . . . . . . . . Slashing 155 | . . . . . . . . 5 32 7 41 3 16 12 . 11 3 13 12 Piercing . | . . . . . . . . . . . . . . . . . . . . Sneak Attacks 37 | . . . . . . . . 2 6 3 6 3 8 2 . 6 . 1 . Combat Hostiles 7 | . . . . . . . . . 2 1 3 . . 1 . . . . . Follow-up Attacks 19 | . . . . . . . . . 6 . 7 . . 2 . . . 2 2 Damage Inflicted 11163 | . 687 . 102 . . 163 1519 204 1053 327 1650 1064 1082 2121 . 511 58 388 234 Guns 1623 | . 687 . 102 . . . 834 . . . . . . . . . . . . Cannons . | . . . . . . . . . . . . . . . . . . . . Explosions 3711 | . . . . . . 163 685 . . . 521 816 . 1526 . . . . . Melee 5829 | . . . . . . . . 204 1053 327 1129 248 1082 595 . 511 58 388 234 Ramming . | . . . . . . . . . . . . . . . . . . . . Kinetic 1360 | . 687 . 102 . . . 571 . . . . . . . . . . . . Thermal 263 | . . . . . . . 263 . . . . . . . . . . . . Explosive 2062 | . . . . . . 163 562 . . . 521 816 . . . . . . . Electromagnetic 1649 | . . . . . . . 123 . . . . . . 1526 . . . . . Impact 44 | . . . . . . . . . 44 . . . . . . . . . . Slashing 5785 | . . . . . . . . 204 1009 327 1129 248 1082 595 . 511 58 388 234 Piercing . | . . . . . . . . . . . . . . . . . . . . Highest Corruption 7 | . . . . . . . 1 . . . . . . 2 . . . . 7 Average Corruption 1 | . . . . . . . 1 . . . . . . 2 . . . . 5 Corruption Purged . | . . . . . . . . . . . . . . . . . . . . Corruption Blocked . | . . . . . . . . . . . . . . . . . . . . Effects 9 | . . . . . . . 8 . . . . . . . . . . . 1 Message Errors 1 | . . . . . . . 1 . . . . . . . . . . . . Matter Fused 3 | . . . . . . . 2 . . . . . . . . . . . 1 Heat Flow Errors 1 | . . . . . . . 1 . . . . . . . . . . . . Energy Discharges 2 | . . . . . . . 2 . . . . . . . . . . . . Parts Rejected 1 | . . . . . . . 1 . . . . . . . . . . . . Alerts 1 | . . . . . . . 1 . . . . . . . . . . . . Overload Shots . | . . . . . . . . . . . . . . . . . . . . Overflow Damage 946 | . . . . . . 9 . 57 81 . 145 61 350 149 . 15 . 59 20 Projectiles . | . . . . . . . . . . . . . . . . . . . . Explosions 87 | . . . . . . 9 . . . . 11 8 . 59 . . . . . Melee 859 | . . . . . . . . 57 81 . 134 53 350 90 . 15 . 59 20 Knockbacks . | . . . . . . . . . . . . . . . . . . . . Impact . | . . . . . . . . . . . . . . . . . . . . Kinetic . | . . . . . . . . . . . . . . . . . . . . Secondary . | . . . . . . . . . . . . . . . . . . . . Self-Inflicted Damage 232 | . . . . . . . 42 . . . 70 22 . 98 . . . . . Shots 5 | . . . . . . . 1 . . . 2 1 . 1 . . . . . Rammed . | . . . . . . . . . . . . . . . . . . . . Targets Rammed . | . . . . . . . . . . . . . . . . . . . . Kicked . | . . . . . . . . . . . . . . . . . . . . Crushed . | . . . . . . . . . . . . . . . . . . . . Highest Temperature 192 | . 20 . 1 . . . 192 . . . . . . . . . . . 3 Average Temperature 22 | . 5 . 1 . . . 28 . . . . . . . . . . . 1 Received Heat Transfer 1068 | . 213 . 9 . . . 630 . 18 27 99 . . 63 . . . . 9 Siege Activations . | . . . . . . . . . . . . . . . . . . . . Robots Corrupted 3 | . . . . . . . . . 1 . . . . 2 . . . . . Combat Hostiles . | . . . . . . . . . . . . . . . . . . . . Parts Fried 10 | . . . . . . . . . 1 . . . . 9 . . . . . Impact Corruptions 1 | . . . . . . . . . 1 . . . . . . . . . . Robots Melted . | . . . . . . . . . . . . . . . . . . . . Combat Hostiles . | . . . . . . . . . . . . . . . . . . . . Parts Melted 4 | . . . . . . . 4 . . . . . . . . . . . . Heat Transferred 549 | . . . . . . . 549 . . . . . . . . . . . . Parts Sabotaged . | . . . . . . . . . . . . . . . . . . . . Parts Stolen . | . . . . . . . . . . . . . . . . . . . . Parts Stripped . | . . . . . . . . . . . . . . . . . . . . Power Chain Reactions . | . . . . . . . . . . . . . . . . . . . . Alert | -11 -10 -10 -9 -9 -9 -8 -8 -7 -6 -5 -5 -5 -5 -5 -4 -3 -2 -1 -1 ------- Run | Yrd Mat Min Mat Min Exi Min Mat Fac Fac Fac Ext Cet Arc Hub Fac Res Res Acc Com Peak Influence 880 | . 172 47 55 21 . 94 305 299 235 185 880 591 399 746 213 84 54 174 240 Initial 428 | . . 47 18 21 . . 36 138 53 41 90 428 236 139 213 68 47 32 111 Average 175 | . 83 47 28 21 . 91 190 181 121 100 350 576 340 313 115 75 51 79 147 Maximum Alert Level 3 | . . . . . . . 1 1 1 . 3 2 1 3 1 . . . 1 Low Security (%) 75 | 100 100 100 100 100 . 100 42 64 85 100 60 . . 35 93 100 100 100 96 Level 1 15 | . . . . . . . 57 35 14 . 4 . 100 33 6 . . . 3 Level 2 6 | . . . . . . . . . . . 13 100 . 24 . . . . . Level 3 3 | . . . . . . . . . . . 21 . . 7 . . . . . Level 4 . | . . . . . . . . . . . . . . . . . . . . Level 5 . | . . . . . . . . . . . . . . . . . . . . High Security . | . . . . . . . . . . . . . . . . . . . . Max Security . | . . . . . . . . . . . . . . . . . . . . Squads Dispatched 19 | . 2 . 1 . . . 3 1 2 1 1 . . 5 2 . . 1 . Investigation 7 | . 1 . . . . . 1 1 1 1 . . . . 1 . . 1 . Extermination 1 | . . . . . . . . . 1 . . . . . . . . . . Reinforcement 10 | . 1 . 1 . . . 1 . . . 1 . . 5 1 . . . . Assault . | . . . . . . . . . . . . . . . . . . . . Garrison 1 | . . . . . . . 1 . . . . . . . . . . . . Intercept . | . . . . . . . . . . . . . . . . . . . . Searches Triggered . | . . . . . . . . . . . . . . . . . . . . Construction Impeded 2 | . . . . . . . 1 . . . . . . 1 . . . . . Haulers Reinforced . | . . . . . . . . . . . . . . . . . . . . Active Scanning Responses . | . . . . . . . . . . . . . . . . . . . . Cargo Convoy Interrupts . | . . . . . . . . . . . . . . . . . . . . Stealth | -11 -10 -10 -9 -9 -9 -8 -8 -7 -6 -5 -5 -5 -5 -5 -4 -3 -2 -1 -1 --------- Run | Yrd Mat Min Mat Min Exi Min Mat Fac Fac Fac Ext Cet Arc Hub Fac Res Res Acc Com Distress Signals 22 | . 1 . 1 . . . 3 1 1 . 2 1 1 1 . . . 5 5 Communications Jammed . | . . . . . . . . . . . . . . . . . . . . Distress Signals . | . . . . . . . . . . . . . . . . . . . . Times Spotted 361 | . 14 . 2 . . 3 30 6 10 2 16 5 3 21 1 . 1 18 229 Peak Tracking Total 198 | . 5 . 2 . . 3 5 4 2 1 3 5 1 13 1 . 1 7 198 Tactical Retreats 14 | . . . . . . . 2 1 2 . . . . . . . . 4 5 Traps | -11 -10 -10 -9 -9 -9 -8 -8 -7 -6 -5 -5 -5 -5 -5 -4 -3 -2 -1 -1 ------- Run | Yrd Mat Min Mat Min Exi Min Mat Fac Fac Fac Ext Cet Arc Hub Fac Res Res Acc Com Traps Triggered 8 | . 1 . . . . . 1 2 . . 2 . . . 1 . . 1 . Indirectly . | . . . . . . . . . . . . . . . . . . . . Trap Hack Attempts . | . . . . . . . . . . . . . . . . . . . . Triggered . | . . . . . . . . . . . . . . . . . . . . Disarmed . | . . . . . . . . . . . . . . . . . . . . Reprogrammed 12 | . . . . . . . . . . . . . . . 6 6 . . . Reused 15 | . . . . . . . . . 3 9 1 . . . 1 1 . . . Traps Reconfigurated 89 | . . . . . . . . 5 29 33 22 . . . . . . . . Traps Extracted . | . . . . . . . . . . . . . . . . . . . . Installed . | . . . . . . . . . . . . . . . . . . . . Triggered 15 | . . . . . . . . . 3 9 1 . . . 1 1 . . . Machines | -11 -10 -10 -9 -9 -9 -8 -8 -7 -6 -5 -5 -5 -5 -5 -4 -3 -2 -1 -1 ---------- Run | Yrd Mat Min Mat Min Exi Min Mat Fac Fac Fac Ext Cet Arc Hub Fac Res Res Acc Com Machines Disabled 12 | . . . . . . . 1 1 . . 4 . . 6 . . . . . Max in Single Turn 5 | . . . . . . . 1 1 . . 1 . . 5 . . . . . Garrison Access 5 | . . . . . . . . 1 1 1 . . . 1 . . . 1 . Network Hub 1 | . . . . . . . . . . . . . . 1 . . . . . Machines Repaired . | . . . . . . . . . . . . . . . . . . . . Machines Dismantled . | . . . . . . . . . . . . . . . . . . . . Machines Sabotaged . | . . . . . . . . . . . . . . . . . . . . Overloaded Fab Kills . | . . . . . . . . . . . . . . . . . . . . Hacking | -11 -10 -10 -9 -9 -9 -8 -8 -7 -6 -5 -5 -5 -5 -5 -4 -3 -2 -1 -1 --------- Run | Yrd Mat Min Mat Min Exi Min Mat Fac Fac Fac Ext Cet Arc Hub Fac Res Res Acc Com Machines Accessed 67 | . 3 . . . 1 . . 9 8 4 11 1 . 6 3 9 . 9 3 Terminals 47 | . 2 . . . . . . 7 5 2 10 1 . 5 2 4 . 6 3 Fabricators 6 | . . . . . . . . 1 1 1 . . . . 1 2 . . . Repair Stations 1 | . . . . . . . . . . . . . . . . . . 1 . Recycling Units 5 | . 1 . . . . . . . 1 . 1 . . . . 2 . . . Scanalyzers 2 | . . . . . . . . . . . . . . . . 1 . 1 . Garrison Access 5 | . . . . . . . . 1 1 1 . . . 1 . . . 1 . Total Hacks 226 | . 7 . . . 1 . . 15 15 10 36 1 . 19 24 35 . 42 21 Successful 139 | . 4 . . . 1 . . 8 7 3 19 1 . 14 21 22 . 26 13 Failed 87 | . 3 . . . . . . 7 8 7 17 . . 5 3 13 . 16 8 Catastrophic 13 | . . . . . . . . 2 2 . . . . . . 3 . 3 3 Database Lockouts . | . . . . . . . . . . . . . . . . . . . . Manual 116 | . 5 . . . 1 . . 9 9 1 15 1 . 17 19 16 . 12 11 Terminals 197 | . 6 . . . . . . 13 11 7 34 1 . 18 23 28 . 35 21 Fabricators 8 | . . . . . . . . 1 2 1 . . . . 1 3 . . . Repair Stations 5 | . . . . . . . . . . . . . . . . . . 5 . Recycling Units 7 | . 1 . . . . . . . 1 . 2 . . . . 3 . . . Scanalyzers 2 | . . . . . . . . . . . . . . . . 1 . 1 . Garrison Access 6 | . . . . . . . . 1 1 2 . . . 1 . . . 1 . Terminal Hacks 91 | . 1 . . . 1 . . 3 1 . 14 1 . 11 17 14 . 17 11 Record 10 | . . . . . . . . . . . . . . . . 2 . 7 1 Robot Analysis 4 | . . . . . . . . . . . 1 . . . 1 1 . . 1 Prototype ID Bank 3 | . . . . . . . . 1 . . 1 . . . 1 . . . . Open Door 9 | . . . . . . . . . . . 5 1 . . . . . 3 . Level Access Points 5 | . . . . . . . . . . . . . . 1 1 1 . 1 1 Branch Access Points 5 | . 1 . . . . . . 1 . . . . . . 1 1 . 1 . Emergency Access Points 3 | . . . . . . . . . . . 1 . . . 1 . . . 1 Machine Index 3 | . . . . . . . . . . . . . . . 1 1 . . 1 Terminal Index 2 | . . . . . . . . . . . 1 . . . 1 . . . . Repair Station Index 1 | . . . . . . . . . . . . . . . 1 . . . . Recycling Unit Index 1 | . . . . . . . . . . . . . . . 1 . . . . Garrison Index 1 | . . . . . . . . . . . . . . . . . . 1 . Alert Level 11 | . . . . . . . . . . . . . . 3 2 1 . 2 3 Unreport Threat 8 | . . . . . . . . . 1 . . . . 5 1 . . . 1 Locate Traps 4 | . . . . . . . . . . . 2 . . . 1 1 . . . Reprogram Traps 2 | . . . . . . . . . . . . . . . 1 1 . . . Recall Investigation 1 | . . . . . . . . 1 . . . . . . . . . . . Registered Components 2 | . . . . . . . . . . . . . . . 1 1 . . . Registered Prototypes 4 | . . . . . . . . . . . . . . . 1 2 . . 1 Zone Layout 11 | . . . . . . . . . . . 3 . . 2 1 2 . 2 1 Derelict Proto ID Bank 1 | . . . . . 1 . . . . . . . . . . . . . . Fabricator Hacks 5 | . . . . . . . . 1 . 1 . . . . 1 2 . . . Network Status 4 | . . . . . . . . 1 . 1 . . . . 1 1 . . . Build 1 | . . . . . . . . . . . . . . . . 1 . . . Repair Station Hacks 4 | . . . . . . . . . . . . . . . . . . 4 . Scan Component 2 | . . . . . . . . . . . . . . . . . . 2 . Repair 2 | . . . . . . . . . . . . . . . . . . 2 . Recycling Unit Hacks 5 | . 1 . . . . . . . 1 . 1 . . . . 2 . . . Report Inventory 5 | . 1 . . . . . . . 1 . 1 . . . . 2 . . . Scanalyzer 2 | . . . . . . . . . . . . . . . . 1 . 1 . Insert Component 2 | . . . . . . . . . . . . . . . . 1 . 1 . Garrison Access Hacks 5 | . . . . . . . . 1 1 1 . . . 1 . . . 1 . Seal Access 5 | . . . . . . . . 1 1 1 . . . 1 . . . 1 . Unauthorized Hacks 27 | . 2 . . . . . . 3 4 1 4 . . 2 3 3 . 3 2 Terminals 27 | . 2 . . . . . . 3 4 1 4 . . 2 3 3 . 3 2 Assimilate 6 | . . . . . . . . 1 2 . . . . . 1 . . 1 1 Botnet 21 | . 2 . . . . . . 2 2 1 4 . . 2 2 3 . 2 1 Fabricators . | . . . . . . . . . . . . . . . . . . . . Repair Stations . | . . . . . . . . . . . . . . . . . . . . Recycling Units . | . . . . . . . . . . . . . . . . . . . . Scanalyzers . | . . . . . . . . . . . . . . . . . . . . Garrison Access . | . . . . . . . . . . . . . . . . . . . . Data Cores Recovered . | . . . . . . . . . . . . . . . . . . . . Used . | . . . . . . . . . . . . . . . . . . . . Hacking Detections 38 | . 2 . . . . . . 7 6 2 7 . . 4 2 3 . 4 1 Full Trace Events 3 | . . . . . . . . 1 1 1 . . . . . . . . . Feedback Events 3 | . . . . . . . . . . 3 . . . . . . . . . Hackware Fried 3 | . . . . . . . . . . 3 . . . . . . . . . Feedback Blocked . | . . . . . . . . . . . . . . . . . . . . Robot Schematics Acquired . | . . . . . . . . . . . . . . . . . . . . Robots Built 3 | . . . . . . . . . . . . . . . . 3 . . . Authchips . | . . . . . . . . . . . . . . . . . . . . Time 62 | . . . . . . . . . . . . . . . . 62 . . . Total Robot Build Rating 21 | . . . . . . . . . . . . . . . . 21 . . . Part Schematics Acquired . | . . . . . . . . . . . . . . . . . . . . Parts Built . | . . . . . . . . . . . . . . . . . . . . Authchips . | . . . . . . . . . . . . . . . . . . . . Time . | . . . . . . . . . . . . . . . . . . . . Total Part Build Rating . | . . . . . . . . . . . . . . . . . . . . Parts Repaired 2 | . . . . . . . . . . . . . . . . . . 2 . Time 80 | . . . . . . . . . . . . . . . . . . 80 . Parts Recycled . | . . . . . . . . . . . . . . . . . . . . Recycled Matter . | . . . . . . . . . . . . . . . . . . . . Retrieved Matter . | . . . . . . . . . . . . . . . . . . . . Retrieved Components . | . . . . . . . . . . . . . . . . . . . . Parts Scanalyzed . | . . . . . . . . . . . . . . . . . . . . Part Schematics Acquired . | . . . . . . . . . . . . . . . . . . . . Parts Damaged . | . . . . . . . . . . . . . . . . . . . . Bothacking | -11 -10 -10 -9 -9 -9 -8 -8 -7 -6 -5 -5 -5 -5 -5 -4 -3 -2 -1 -1 ------------ Run | Yrd Mat Min Mat Min Exi Min Mat Fac Fac Fac Ext Cet Arc Hub Fac Res Res Acc Com Used RIF Installer . | . . . . . . . . . . . . . . . . . . . . Robots Hacked . | . . . . . . . . . . . . . . . . . . . . Non-combat . | . . . . . . . . . . . . . . . . . . . . Combat . | . . . . . . . . . . . . . . . . . . . . Robot Hacks Applied . | . . . . . . . . . . . . . . . . . . . . Relay Couplers Released . | . . . . . . . . . . . . . . . . . . . . Fabnet Peak Effective % . | . . . . . . . . . . . . . . . . . . . . Robots Rewired 18 | . . . . . . . . . . . 18 . . . . . . . . Allies Hacked . | . . . . . . . . . . . . . . . . . . . . Hacks Repelled . | . . . . . . . . . . . . . . . . . . . . Allies | -11 -10 -10 -9 -9 -9 -8 -8 -7 -6 -5 -5 -5 -5 -5 -4 -3 -2 -1 -1 -------- Run | Yrd Mat Min Mat Min Exi Min Mat Fac Fac Fac Ext Cet Arc Hub Fac Res Res Acc Com Total Allies 37 | . . . . . . . . 1 1 . 24 5 . . 1 3 . 1 1 Largest Group 17 | . . . . . . . . 1 1 1 17 17 15 10 1 2 . 1 1 Highest-Rated Group 929 | . . . . . . . . 10 26 26 627 929 909 648 10 94 . 45 45 Highest-Rated Ally 159 | . . . . . . . . 10 26 26 159 159 159 96 10 47 . 45 45 Total Orders 11 | . . . . . . . . . . . 6 . . 4 . . . 1 . STAY 1 | . . . . . . . . . . . . . . . . . . 1 . EXPLORE 7 | . . . . . . . . . . . 3 . . 4 . . . . . RETURN 3 | . . . . . . . . . . . 3 . . . . . . . . Ally Attacks 160 | . . . . . . . . . . . 83 22 21 34 . . . . . Total Damage 3697 | . . . . . . . . . . . 1652 244 579 1222 . . . . . Kills 48 | . . . . . . . . . . . 22 6 4 16 . . . . . Allies Corrupted 2 | . . . . . . . . . . . . . . 2 . . . . . Allies Melted . | . . . . . . . . . . . . . . . . . . . . Intel | -11 -10 -10 -9 -9 -9 -8 -8 -7 -6 -5 -5 -5 -5 -5 -4 -3 -2 -1 -1 ------- Run | Yrd Mat Min Mat Min Exi Min Mat Fac Fac Fac Ext Cet Arc Hub Fac Res Res Acc Com Robot Analysis Total 4 | . . . . . . . . . . . 1 . . . 1 1 . . 1 Derelict Logs Recovered . | . . . . . . . . . . . . . . . . . . . . Drone Launches 7 | . . . . . . . . . . . 3 . . 4 . . . . . Drone Recoveries 6 | . . . . . . . . . . . 3 . . 3 . . . . . Exploration | -11 -10 -10 -9 -9 -9 -8 -8 -7 -6 -5 -5 -5 -5 -5 -4 -3 -2 -1 -1 ------------- Run | Yrd Mat Min Mat Min Exi Min Mat Fac Fac Fac Ext Cet Arc Hub Fac Res Res Acc Com Turns Passed 6855 | 80 684 76 143 68 331 130 756 586 708 279 884 221 134 238 144 377 32 646 338 Spaces Moved 10177 | 43 271 32 60 43 207 76 263 1474 1553 631 1245 171 146 471 426 970 109 1428 558 Core 19 | 3 . . . . . . 7 . . . . . . . . . . . 9 Treads 950 | 40 271 32 60 43 207 76 221 . . . . . . . . . . . . Legs 26 | . . . . . . . 26 . . . . . . . . . . . . Wheels . | . . . . . . . . . . . . . . . . . . . . Hover . | . . . . . . . . . . . . . . . . . . . . Flight 9182 | . . . . . . . 9 1474 1553 631 1245 171 146 471 426 970 109 1428 549 Fastest Speed 20 | 50 160 240 160 160 160 160 160 28 28 28 28 28 28 23 27 23 20 20 21 Average Speed 43 | 152 198 240 205 160 160 160 220 30 28 28 29 34 28 27 27 24 20 20 23 Slowest Speed 900 | 160 240 240 240 160 160 160 900 180 104 28 99 96 34 99 27 27 20 21 165 Overloaded Moves 29 | . . . . . . . . . . . . . . 29 . . . . . Propulsion Burnouts . | . . . . . . . . . . . . . . . . . . . . Robots Hopped 31 | . . . . . . . . 9 3 . 7 . . 2 . 1 . 5 4 Cave-ins Triggered . | . . . . . . . . . . . . . . . . . . . . Exploration Rate (%) 34 | 3 51 17 7 14 59 28 20 35 44 20 79 81 84 63 14 18 4 24 16 Regions Visited 19 Branch Regions 9 Pre-discovered Areas . | . . . . . . . . . . . . . . . . . . . . Known Exits Taken 18 | . 1 1 1 1 1 1 1 1 1 1 1 1 1 1 1 1 1 1 . Unknown Exits Taken 1 | 1 . . . . . . . . . . . . . . . . . . . Scrap Searched 1 | . . . . 1 . . . . . . . . . . . . . . . Spaces Dug 139 | . . . . . . . . . . . 132 . . . . 2 . 2 3 Terrain Destroyed 531 | . . . . . . 32 22 . . . 192 117 . 161 . 2 . 2 3 Melee 8 | . . . . . . . . . . . 1 . . . . 2 . 2 3 Projectile . | . . . . . . . . . . . . . . . . . . . . AOE 523 | . . . . . . 32 22 . . . 191 117 . 161 . . . . . Terrain Rammed . | . . . . . . . . . . . . . . . . . . . . Walls Destroyed . | . . . . . . . . . . . . . . . . . . . . Machines Disabled . | . . . . . . . . . . . . . . . . . . . . Actions | -11 -10 -10 -9 -9 -9 -8 -8 -7 -6 -5 -5 -5 -5 -5 -4 -3 -2 -1 -1 --------- Run | Yrd Mat Min Mat Min Exi Min Mat Fac Fac Fac Ext Cet Arc Hub Fac Res Res Acc Com Total 12233 | 58 339 33 70 42 207 81 363 1591 1781 723 1685 316 218 559 453 1100 115 1751 748 Wait 1409 | . 3 . 2 . . . 1 78 167 80 238 136 47 69 21 95 1 290 181 Move 10097 | 42 270 31 59 42 206 75 262 1455 1546 630 1230 170 145 466 425 967 108 1417 551 Hop 30 | . . . . . . . . 9 3 . 7 . . 2 . 1 . 5 3 Pick Up 118 | 10 17 1 2 . 1 1 17 15 13 2 6 . 8 2 . 14 1 8 . Fast Attach 9 | . 1 . . . . . . 2 1 . . . . . . . . 5 . Attach 82 | 6 2 . 2 . . . 19 14 4 5 6 1 2 4 4 5 2 4 2 Detach 13 | . . . . . . . 4 4 . . 1 . . 1 . 1 1 . 1 Swap 33 | . 1 . . . . 2 . 4 7 . 5 2 . 2 2 3 . 5 . Drop 46 | . 5 1 . . . . 5 5 11 . . . 3 2 1 6 . 7 . Fire 118 | . 40 . 5 . . 3 55 . . . 10 4 . 1 . . . . . Melee 127 | . . . . . . . . 5 29 6 31 3 13 10 . 8 2 10 10 Ram . | . . . . . . . . . . . . . . . . . . . . Kick . | . . . . . . . . . . . . . . . . . . . . Crush . | . . . . . . . . . . . . . . . . . . . . Escape Stasis 36 | . . . . . . . . . . . 36 . . . . . . . . Rewire 115 | . . . . . . . . . . . 115 . . . . . . . . Trap . | . . . . . . . . . . . . . . . . . . . . Miscellaneous . | . . . . . . . . . . . . . . . . . . . . Route ------- -11/Scrapyard -10/Materials (discovered 2 exits: *Mat / *Min) -10/Mines -9/Materials -9/Mines -9/Exiles -8/Mines -8/Materials -7/Factory (discovered 5 exits: *Fac / *Sto x2 / *Low x2) -6/Factory (discovered 2 exits: *Fac / *Low) -5/Factory (discovered 3 exits: *Fac / *Upp / *Ext) -5/Extension (discovered 2 exits: *Fac / *Cet) -5/Cetus -5/Archives (discovered 3 exits: *Fac / *Hub x2) -5/Hub_04(d) (discovered 4 exits: *Fac x4) -4/Factory (discovered 7 exits: *Res x4 / Upp x2 / Arm) -3/Research (discovered 5 exits: *Res x3 / Tes x2) -2/Research -1/Access (discovered 2 exits: Sur / *Com) -1/Command (discovered 2 exits: Sur x2) History --------- Turn | Location | Event 30 | -11/Scrapyard | Discovered new exit (range 15) 81 | -11/Scrapyard | Entered Materials 310 | -10/Materials | Build established: Mutant 347 | -10/Materials | Identified exit to Mines 355 | -10/Materials | Discovered new exit (range 11) 765 | -10/Materials | Entered Mines 787 | -10/Mines | Received a Rocket Launcher from a helpful Derelict 822 | -10/Mines | Discovered new exit (range 8) 839 | -10/Mines | Identified exit to Materials 841 | -10/Mines | Entered Materials 841 | -9/Materials | Evolved 2 slots: Propulsion x2 962 | -9/Materials | Discovered new exit (range 12) 982 | -9/Materials | Identified exit to Mines 984 | -9/Materials | Entered Mines 1045 | -9/Mines | Deemed a non-threat by the Exiles lab entrance 1045 | -9/Mines | Discovered new exit (range 5) 1050 | -9/Mines | Identified exit to Exiles 1052 | -9/Mines | Entered Exiles 1091 | -9/Exiles | Met 8R-AWN 1118 | -9/Exiles | Met EX-HEX 1168 | -9/Exiles | Met EX-BIN 1187 | -9/Exiles | Aligned with FarCom system 1188 | -9/Exiles | Given EX-Vault access code 1225 | -9/Exiles | Opened EX-Vault 1233 | -9/Exiles | Found Trap Reconfigurator 1266 | -9/Exiles | Warned to stay clear of 0b10 Research branches 1309 | -9/Exiles | Met EX-DEC 1365 | -9/Exiles | Discovered new exit (range 10) 1381 | -9/Exiles | Identified exit to Mines 1383 | -9/Exiles | Left Exiles lab with Trap Reconfigurator 1383 | -9/Exiles | Entered Mines 1505 | -8/Mines | Discovered new exit (range 5) 1512 | -8/Mines | Identified exit to Materials 1513 | -8/Mines | Entered Materials 1513 | -8/Materials | Evolved 2 slots: Utility x2 1629 | -8/Materials | Garrison activated, responded to threat 1731 | -8/Materials | Lost 5 parts (1p4n) 1812 | -8/Materials | Lost 3 parts (1p1n1w) 1935 | -8/Materials | Core integrity fell below 50% 1963 | -8/Materials | Core integrity fell below 20% 1984 | -8/Materials | Lost 6 parts (1p3n2w) 2252 | -8/Materials | Discovered new exit (range 12) 2268 | -8/Materials | Identified exit to Factory 2269 | -8/Materials | Entered Factory 2269 | -7/Factory | Evolved 2 slots: Propulsion x1, Utility x1 2321 | -7/Factory | Identified exit to Storage 2321 | -7/Factory | Identified exit to Lower Caves 2837 | -7/Factory | Discovered new exit (range 20) 2851 | -7/Factory | Identified exit to Factory 2855 | -7/Factory | Entered another Factory area 2855 | -6/Factory | Accompanied by 1 ally 2855 | -6/Factory | Evolved 2 slots: Power x1, Utility x1 2876 | -6/Factory | Build established: Sprinter 3171 | -6/Factory | P-60 Hacker assimilated allied Technician 4a 3215 | -6/Factory | Discovered new exit (range 15) 3233 | -6/Factory | Identified exit to Lower Caves 3413 | -6/Factory | Found Prototype Launcher 3550 | -6/Factory | Discovered new exit (range 14) 3553 | -6/Factory | Identified exit to Factory 3563 | -6/Factory | Entered another Factory area 3563 | -5/Factory | Accompanied by 1 ally 3563 | -5/Factory | Evolved 2 slots: Utility x2 3602 | -5/Factory | Discovered new exit (range 15) 3750 | -5/Factory | Hacking Suite fried by hacking feedback 3750 | -5/Factory | Hacking Suite fried by hacking feedback 3750 | -5/Factory | Imp. System Shield fried by hacking feedback 3781 | -5/Factory | Lost 3 parts (3u) 3817 | -5/Factory | Discovered new exit (range 13) 3817 | -5/Factory | Identified exit to Upper Caves 3820 | -5/Factory | Identified exit to Factory 3821 | -5/Factory | Discovered new exit (range 19) 3838 | -5/Factory | Identified exit to Extension 3842 | -5/Factory | Entered Extension 3842 | -5/Extension | Accompanied by 1 ally 4065 | -5/Extension | Build established: Hacker-Sprinter 4305 | -5/Extension | Rescued a captive Derelict 4335 | -5/Extension | Lost 3 allies 4399 | -5/Extension | Rescued a captive Derelict 4405 | -5/Extension | Rescued a captive Derelict 4405 | -5/Extension | Rescued a captive Derelict 4442 | -5/Extension | Rescued a captive Derelict 4655 | -5/Extension | Rescued A7 4666 | -5/Extension | Discovered exit to Factory (range 10) 4666 | -5/Extension | Discovered new exit (range 6) 4686 | -5/Extension | Identified exit to Cetus 4726 | -5/Extension | Entered Cetus 4726 | -5/Cetus | Accompanied by 17 allies (A7) 4729 | -5/Cetus | Identified Scatter Rocket Array 4731 | -5/Cetus | Acquired a Cetus Manufacturing Module code from A7 4736 | -5/Cetus | Spotted Cetus Guard 4736 | -5/Cetus | Spotted Cetus Guard 4736 | -5/Cetus | Spotted Cetus Guard 4736 | -5/Cetus | Spotted Cetus Guard 4744 | -5/Cetus | Allies destroyed Cetus Guard 4752 | -5/Cetus | Allies destroyed Cetus Guard 4753 | -5/Cetus | Allies destroyed Cetus Guard 4754 | -5/Cetus | Allies destroyed Cetus Guard 4767 | -5/Cetus | Started Cetus Manufacturing Module 4783 | -5/Cetus | Lost 5 allies 4784 | -5/Cetus | Lost 3 parts (1p2w) 4792 | -5/Cetus | Manufactured an Enhanced Grunt 4817 | -5/Cetus | Manufactured an Enhanced Grunt 4842 | -5/Cetus | Manufactured an Enhanced Grunt 4849 | -5/Cetus | Escorted A7 to Cetus Mainframe 4867 | -5/Cetus | Manufactured an Enhanced Grunt 4892 | -5/Cetus | Manufactured an Enhanced Grunt 4901 | -5/Cetus | Discovered new exit (range 20) 4933 | -5/Cetus | Identified exit to Archives 4947 | -5/Cetus | Entered Archives 4947 | -5/Archives | Accompanied by 16 allies (A7) 4952 | -5/Archives | Received a hacking code to weaken MAIN.C 4989 | -5/Archives | Unable to access archive contents 4990 | -5/Archives | Discovered new exit (range 17) 4996 | -5/Archives | Discovered new exit (range 20) 5006 | -5/Archives | Discovered exit to Factory (range 19) 5013 | -5/Archives | Lost 5 allies 5050 | -5/Archives | Identified exit to Hub_04(d) 5081 | -5/Archives | Entered Hub_04(d) 5081 | -5/Hub_04(d) | Accompanied by 10 allies 5099 | -5/Hub_04(d) | Discovered exit to Factory (range 8) 5125 | -5/Hub_04(d) | Discovered exit to Factory (range 76) 5125 | -5/Hub_04(d) | Discovered exit to Factory (range 71) 5302 | -5/Hub_04(d) | Network Hub disabled 5316 | -5/Hub_04(d) | Spotted Lightning 5318 | -5/Hub_04(d) | Spotted Lightning 5319 | -5/Hub_04(d) | Spotted Lightning 5319 | -5/Hub_04(d) | Entered Factory 5319 | -4/Factory | Evolved 2 slots: Utility x2 5328 | -4/Factory | Murdered 4 allies 5390 | -4/Factory | Discovered new exit (range 8) 5392 | -4/Factory | Identified exit to Research 5405 | -4/Factory | Identified exit to Upper Caves 5405 | -4/Factory | Identified exit to Armory 5463 | -4/Factory | Entered Research 5463 | -3/Research | Accompanied by 1 ally 5463 | -3/Research | Evolved 2 slots: Utility x2 5592 | -3/Research | Build established: Wizard-Sprinter 5631 | -3/Research | Found Prototype Launcher 5633 | -3/Research | Found Prototype Launcher 5648 | -3/Research | Discovered new exit (range 7) 5649 | -3/Research | Identified exit to Research 5721 | -3/Research | Identified exit to Testing 5761 | -3/Research | Fabricated G-67 Veteran (x3) 5801 | -3/Research | Murdered 3 allies 5840 | -3/Research | Entered another Research area 5840 | -2/Research | Evolved 2 slots: Propulsion x1, Utility x1 5868 | -2/Research | Spotted B-90 Cyclops 5868 | -2/Research | Discovered new exit (range 19) 5872 | -2/Research | Identified exit to Access 5872 | -2/Research | Entered Access 5872 | -1/Access | Evolved 2 slots: Propulsion x1, Utility x1 6045 | -1/Access | Identified exit to Surface 6111 | -1/Access | Repaired Biomechanical Wings 6153 | -1/Access | Repaired Biomechanical Wings 6187 | -1/Access | Identified Hellfire Missile Launcher (x2) 6232 | -1/Access | Spotted B-99 Colossus 6290 | -1/Access | Identified exit to Command 6518 | -1/Access | Entered Command 6852 | -1/Command | Core integrity fell below 50% 6855 | -1/Command | Core integrity fell below 20% 6856 | -1/Command | Destroyed by C-57 Dissector with Dual-blade Saw Last Messages --------------- The unstable cave ceiling collapses. Penetrated by Slug. Slug penetrates H-88 Terminator. P-80 Master resets S-43 Plague, system corruption cleaned. Adv. System Shield severed. C-57 Dissector destroyed. Slug penetrates S-43 Plague. Slug penetrates Wall. Slug penetrates S-43 Plague. Penetrated by Slug. G-73 Enforcer destroyed. Penetrated by Slug. Slug penetrates Wall. P-80 Master resets H-88 Terminator, system corruption cleaned. P-80 Master resets S-43 Plague, system corruption cleaned. Adv. Visual Processing Unit severed. Penetrated by Slug. Map ----- +----------------------------------------------------+ | ?????????????????????????????????????????????????? | | ?????????????????????????????????????????????????? | | ?????????????????????????????????????????????????? | | ?????????????????????????????????????????????????? | | ???????? ???? ??????????????????????????????????? | | ???????? ???? ??????????????????????????????????? | | ???????? ???? ??????????????????????????????????? | | ???? ??? ???? ?????????????#######??????????????? | | +####+###+####+##???????????# ???????????????? | | # # # ???????????# ????????????????? | | # # # s???????????# #########+#???????? | | " ? # ? ???????????# # #???????? | | %"? ? ? s???????????# # +???????? | | %"? ? ? ???????????# # #???????? | | %"? ? ? ???????????# + = #???????? | | "#?# #?# #?# #???????????# # #???????? | | #?# #?# #?# #???????????# # ! #???????? | | #?# #?#hh#?# #???????????# # #???????? | | #?# #?#hh#?# #?????#####?# # ! #???????? | | #?# #?#hh#?# #?????# #?# ####+############## | | ### #?#hh#?# #?????# w #?# #### ## | | # # #?#hh#?# #?????# #?# ## # | | # ###"h###;;######## #### ## # " | | ! bpshhssss ; ; ## # "" " | | =% *pph=hss= ; h ; ## # """" | | * spbsp!ssss]/ c; c@ ; ### ## """" " | | =%= pp!p*s=**%=! c;h ; #?# ## "" " | | #/! #hg###++######## #### #?# ## ! | | # # ###gg#?#gg#?????# #?# "#?# ## | | ## #?#gg#?#gg#?????# w #?#"%### ##+########### | | ### #?#gg#?# g#?????# #?# " ######### | | =#?# #?#gg#?#g #?????#####?# ##""""""" | | %#?# #?#gg#?#gg#???????????# ##+##### ## """"T" | | =#?# #?#gg#?#gg#???????????# ## ???# | | #?# #?# g#?#g #???????????# ## ???# | | %"? ? g?g g ???????????# ## ??# | | %%? ? g?ggg ???????????# ##! ??#"" | | %"? ? ? g ???????????# ## ?#"" "" | | ? ? ? gg ???????????# ## ?#"" """" | | # ? ? gg #??????????# ## ##T """" | | # ? ? #??????????# ## ##"" "" | | ##################??????????# ## ##"" | | ???????????????????????????? * ?######"" | | ???????????????????????????? ?? | | ???????????????????????????? ?? | | ???????????????????????????? ??##### | | ????????????????????????????####??????# | | ??????????????????????????????????????#+########+# | | ?????????????????????????????????????????????????? | | ?????????????????????????????????????????????????? | +----------------------------------------------------+ Best States ------------- Heat Dissipation 52 Energy Generation 41 Energy Capacity 290 Matter Stores 300 Matter Capacity 300 Sight Range 20 Terrain Scan Density 10 ECM Strength 1 Cloak Strength 2 Evasion (%) 74 Recoil Reduction 4 Offensive Hacking 46 Defensive Hacking 60 Item Schematics ----------------- None Robot Schematics ------------------ None Fabricated ------------ G-67 Veteran | x3 | -3/Research | Preloaded Alien Tech Used ----------------- None Achievements -------------- Origins Challenges ------------ None Game ------ Seed BarrageReflectiveReplica Manual? 0 Play Time 02:14:20 Cumulative 59.7 hours Start 2024.12.28 @ 15:23:33 End 2024.12.28 @ 17:48:10 Sessions 1 Manual Loads 0 Difficulty Rogue Special Mode None Game No. 63 Rogue 63 Adventurer 0 Explorer 0 Win Type - Total 1 Types 1/0/0/0/0/0/0/0/0 Lore% 35 Gallery% 36 Achievement% 35 Wizard Run 0 Options --------- Layout 1 ASCII 0 Keyboard 0 Movement Mouse Keybinds 0 Fullscreen 1 Font 24/Smallcaps Map View 50x35 Zoom Use 0% Tactical HUD 0 Map Filters NONE Filters NONE Steam 1 RUN: 84f4183f-d248-4325-9060-a38b0ef33de8